bitfinex-derivatives/quotes_BTCF0:USTF0_20250504
["timestamp","ask_amount","ask_price","bid_price","bid_amount"]
[1746374208139,0.0502,95510.0,95509.0,0.2416938]
[1746374209138,0.0502,95510.0,95509.0,0.3596938]
[1746374210144,0.0502,95510.0,95509.0,0.2416938]
[1746374212338,0.0811,95510.0,95509.0,0.2416938]
[1746374218646,0.2904916,95510.0,95509.0,0.2416938]
[1746374218843,0.1232,95510.0,95509.0,0.2416938]
[1746374220949,0.1232,95510.0,95509.0,0.2093938]
[1746374221141,0.1232,95510.0,95509.0,0.3273938]
[1746374221847,0.3325916,95510.0,95509.0,0.3273938]
[1746374222048,0.1232,95510.0,95509.0,0.3273938]
[1746374222252,0.1232,95510.0,95509.0,0.2093938]
[1746374227159,0.1232,95510.0,95508.0,0.0318]
[1746374227344,0.0316,95509.0,95508.0,0.241196]
[1746374227546,0.0516,95509.0,95508.0,0.241196]
[1746374227746,0.0841,95509.0,95508.0,0.241196]
[1746374228450,0.0871,95509.0,95508.0,0.241196]
[1746374229541,0.0911,95509.0,95508.0,0.241196]
[1746374229956,0.0911,95509.0,95508.0,0.273696]
[1746374240356,0.0911,95509.0,95508.0,0.0325]
[1746374240758,0.0911,95509.0,95508.0,0.241896]
[1746374246770,0.0711,95509.0,95508.0,0.241896]
[1746374259177,0.0711,95509.0,95508.0,0.209396]
[1746374274385,0.2094004,95506.0,95505.0,0.16003774]
[1746374274584,0.8102004,95506.0,95505.0,0.36944034]
[1746374275279,0.9282004,95506.0,95505.0,0.36944034]
[1746374275480,0.9935004,95506.0,95505.0,0.36944034]
[1746374275879,0.9965004,95506.0,95505.0,0.36944034]
[1746374276087,0.9995004,95506.0,95505.0,0.36944034]
[1746374277288,0.9995004,95506.0,95505.0,0.2094026]
[1746374277785,0.2094267,95495.0,95494.0,0.2617691]
[1746374277987,0.2094267,95494.0,95493.0,0.16003774]
[1746374278189,0.2094487,95484.0,95475.0,0.0523666]
[1746374278389,0.6902487,95484.0,95480.0,0.2094563]
[1746374278575,0.6902487,95484.0,95475.0,0.0523666]
[1746374278780,0.7102487,95484.0,95481.0,0.2094539]
[1746374278984,0.8050487,95484.0,95480.0,0.052364]
[1746374279188,0.93339428,95484.0,95480.0,0.052364]
[1746374279388,0.93339428,95484.0,95483.0,0.42289625]
[1746374279688,1.03812628,95484.0,95483.0,0.21544545]
[1746374280387,1.03812628,95484.0,95483.0,0.42589625]
[1746374281089,0.92012628,95484.0,95483.0,0.54389625]
[1746374282094,0.92012628,95484.0,95483.0,0.3304508]
[1746374285890,0.0523697,95471.0,95466.0,0.3608]
[1746374286084,0.0523697,95471.0,95406.0,0.78527097]
[1746374286085,0.2094881,95466.0,95460.0,0.0523751]
[1746374286284,0.2294881,95466.0,95465.0,0.2105378]
[1746374286491,0.3894881,95466.0,95465.0,0.2105378]
[1746374286994,0.4225881,95466.0,95465.0,0.2105378]
[1746374287292,0.4225881,95466.0,95465.0,0.3285378]
[1746374287293,0.4175881,95466.0,95465.0,0.3285378]
[1746374288689,0.2131,95466.0,95465.0,0.3355378]
[1746374288893,0.0331,95466.0,95465.0,0.3355378]
[1746374289088,0.2425881,95466.0,95465.0,0.1260475]
[1746374289394,0.3525881,95466.0,95465.0,0.3355378]
[1746374289591,0.3525881,95466.0,95465.0,0.1260475]
[1746374289887,0.6925881,95466.0,95465.0,0.1260475]
[1746374290093,0.6925881,95466.0,95452.0,0.3608]
[1746374290094,0.2095277,95448.0,95444.0,0.0523837]
[1746374290392,0.2095277,95448.0,95438.0,0.15181489]
[1746374290393,0.2195277,95448.0,95438.0,0.15181489]
[1746374290584,0.2195277,95448.0,95447.0,0.21110134]
[1746374291296,0.0714,95448.0,95447.0,0.32910134]
[1746374291484,0.0523738,95463.0,95462.0,0.2094969]
[1746374291685,0.05,95463.0,95462.0,0.2618707]
[1746374291993,0.2594947,95463.0,95462.0,0.2618707]
[1746374292291,0.2594947,95463.0,95462.0,0.3798707]
[1746374292692,0.2894947,95463.0,95462.0,0.3798707]
[1746374293395,0.2924947,95463.0,95462.0,0.3798707]
[1746374296394,0.2924947,95463.0,95462.0,0.3274969]
[1746374296595,0.3224947,95463.0,95462.0,0.3274969]
[1746374310906,0.3224947,95463.0,95462.0,0.118]
[1746374311607,0.3224947,95463.0,95462.0,0.3274947]
[1746374328740,0.083,95463.0,95462.0,0.4274947]
[1746374328940,0.003,95463.0,95462.0,0.4274947]
[1746374329235,0.003,95463.0,95462.0,0.3274947]
[1746374329647,0.003,95463.0,95462.0,0.3915947]
[1746374330439,0.082372,95466.0,95464.0,0.2094903]
[1746374330636,0.3018601,95466.0,95465.0,0.2730903]
[1746374331034,0.3318601,95466.0,95465.0,0.2730903]
[1746374331240,0.3318601,95466.0,95465.0,0.3910903]
[1746374333235,0.071,95466.0,95465.0,0.3910903]
[1746374333442,0.031,95466.0,95465.0,0.3910903]
[1746374339047,0.031,95466.0,95465.0,0.7518903]
[1746374345047,0.031,95466.0,95465.0,0.3910903]
[1746374345247,0.031,95466.0,95465.0,0.7518903]
[1746374356855,0.031,95466.0,95465.0,0.7199903]
[1746374358854,0.031,95466.0,95465.0,0.6882903]
[1746374373159,0.031,95466.0,95465.0,0.7512503]
[1746374375065,0.031,95466.0,95465.0,0.7612503]
[1746374384675,0.031,95466.0,95465.0,0.7712503]
[1746374385270,0.031,95466.0,95465.0,0.8333503]
[1746374385869,0.031,95466.0,95465.0,0.87877551]
[1746374386377,0.02314409,95466.0,95465.0,0.84886422]
[1746374386980,0.02314409,95466.0,95465.0,1.04679575]
[1746374387479,0.02314409,95466.0,95465.0,0.68599575]
[1746374387669,0.02314409,95466.0,95465.0,1.40759575]
[1746374389088,0.02314409,95466.0,95465.0,0.68599575]
[1746374389290,0.02314409,95466.0,95465.0,1.40759575]
[1746374391190,0.02314409,95466.0,95465.0,1.1941503]
[1746374391589,0.0311,95472.0,95471.0,0.2094772]
[1746374391892,0.0311,95472.0,95471.0,0.3294772]
[1746374392085,0.0311,95472.0,95471.0,0.4474772]
[1746374392277,0.0311,95472.0,95471.0,0.46297091]
[1746374392890,0.0321,95472.0,95471.0,0.47330774]
[1746374393289,0.0341,95472.0,95471.0,0.47330774]
[1746374393986,0.0321,95472.0,95471.0,0.46297091]
[1746374394182,0.0331,95472.0,95471.0,0.46297091]
[1746374394889,0.0321,95472.0,95471.0,0.46297091]
[1746374395091,0.0321,95472.0,95471.0,0.49377091]
[1746374395481,0.0321,95472.0,95471.0,0.4782772]
[1746374395789,0.0321,95472.0,95471.0,0.48860249]
[1746374395990,0.0321,95472.0,95471.0,0.49060249]
[1746374396489,0.0321,95472.0,95471.0,0.49860249]
[1746374396793,0.0311,95472.0,95471.0,0.50160249]
[1746374396984,0.0321,95472.0,95471.0,0.50160249]
[1746374397592,0.0311,95472.0,95471.0,0.50360249]
[1746374399895,0.0311,95472.0,95471.0,1.22520249]
[1746374401291,0.0311,95472.0,95471.0,1.1840772]
[1746374401486,0.0311,95472.0,95471.0,1.1740772]
[1746374405188,0.635319,95472.0,95471.0,0.4838]
[1746374405396,0.635319,95472.0,95459.0,0.06368]
[1746374405397,0.0523731,95464.0,95456.0,0.34673013]
[1746374405596,0.2095079,95457.0,95456.0,0.55624023]
[1746374405794,0.3095079,95457.0,95456.0,0.55624023]
[1746374406096,0.3095079,95457.0,95456.0,0.34673013]
[1746374406495,0.3095079,95457.0,95456.0,0.55624023]
[1746374407194,0.3095079,95457.0,95456.0,0.67624023]
[1746374407697,0.3095079,95457.0,95456.0,0.67724023]
[1746374408596,0.1324,95457.0,95456.0,0.3305101]
[1746374408784,0.0324,95457.0,95456.0,0.3305101]
[1746374408983,1.07796,95457.0,95431.0,0.3608]
[1746374409188,0.2095694,95433.0,95432.0,0.2619432]
[1746374409492,0.3543574,95433.0,95432.0,0.2619432]
[1746374409682,0.3543574,95433.0,95428.0,0.0523924]
[1746374409683,0.6043574,95433.0,95423.0,0.0523956]
[1746374409887,0.0333,95432.0,95423.0,0.11]
[1746374410192,0.0283,95432.0,95431.0,0.209565]
[1746374410399,0.0283,95432.0,95431.0,0.259565]
[1746374410588,0.0283,95432.0,95431.0,0.03]
[1746374410589,0.7678628,95432.0,95431.0,0.03]
[1746374410790,0.1683,95432.0,95429.0,0.0523923]
[1746374411098,0.0233,95432.0,95431.0,0.327565]
[1746374412287,0.3841,95432.0,95431.0,0.327565]
[1746374412593,0.7994508,95432.0,95431.0,0.118]
[1746374413502,0.6546628,95432.0,95431.0,0.327565]
[1746374413798,0.3851,95432.0,95431.0,0.327565]
[1746374413990,0.3851,95432.0,95431.0,0.118]
[1746374414185,1.0794508,95432.0,95431.0,0.118]
[1746374414388,1.09012187,95432.0,95431.0,0.119]
[1746374415497,1.09012187,95432.0,95431.0,0.328565]
[1746374415898,1.09012187,95432.0,95431.0,0.119]
[1746374416599,1.09012187,95432.0,95431.0,0.00199433]
[1746374416600,1.44012187,95432.0,95431.0,0.00199433]
[1746374416793,1.04012187,95432.0,95431.0,0.00199433]
[1746374417098,0.3951,95432.0,95431.0,0.22155933]
[1746374417391,0.0243,95432.0,95431.0,0.22155933]
[1746374417585,0.001,95432.0,95431.0,0.22155933]
[1746374417791,0.001,95432.0,95431.0,0.28575933]
[1746374417994,0.001,95432.0,95431.0,0.28475933]
[1746374418197,0.003,95432.0,95431.0,0.28475933]
[1746374418595,0.004,95432.0,95431.0,0.28475933]
[1746374419096,0.002,95432.0,95431.0,0.28475933]
[1746374419697,0.0639,95444.0,95443.0,0.2095386]
[1746374420197,0.0639,95444.0,95443.0,0.3275386]
[1746374421094,0.3608,95451.0,95450.0,0.2095233]
[1746374421289,0.0608,95454.0,95453.0,0.2095167]
[1746374421486,0.0608,95454.0,95453.0,0.34491262]
[1746374421692,0.0608,95454.0,95453.0,0.22491262]
[1746374422093,0.2703145,95454.0,95453.0,0.34291262]
[1746374422392,0.0648,95454.0,95453.0,0.34291262]
[1746374422593,0.004,95454.0,95453.0,0.4475167]
[1746374422799,0.004,95454.0,95453.0,0.7575167]
[1746374422998,0.0305,95461.0,95460.0,0.2095013]
[1746374423195,0.0305,95461.0,95460.0,0.3295013]
[1746374423803,0.0305,95461.0,95460.0,0.3919013]
[1746374424105,0.3505,95461.0,95460.0,0.5099013]
[1746374424307,0.32,95461.0,95460.0,0.5099013]
[1746374424897,0.325,95461.0,95460.0,0.5099013]
[1746374425403,0.325,95461.0,95460.0,0.51757408]
[1746374426600,0.331,95461.0,95460.0,0.51857408]
[1746374432110,0.0015,95465.0,95464.0,0.2094925]
[1746374432308,0.1515,95465.0,95464.0,0.3294925]
[1746374432811,0.0015,95465.0,95464.0,0.3931725]
[1746374433002,0.0015,95465.0,95464.0,0.4569725]
[1746374433208,0.0015,95465.0,95464.0,0.5749725]
[1746374433413,0.0085,95465.0,95464.0,0.5759725]
[1746374434214,0.0125,95465.0,95464.0,0.5759725]
[1746374434518,0.0125,95465.0,95464.0,0.5859725]
[1746374438420,0.0125,95465.0,95464.0,0.9467725]
[1746374439219,0.0125,95465.0,95464.0,0.73728]
[1746374440713,0.0125,95465.0,95464.0,0.9467725]
[1746374445724,0.0725,95465.0,95464.0,0.9367725]
[1746374447018,0.071,95465.0,95464.0,1.2167725]
[1746374447221,0.0321,95473.0,95472.0,0.209475]
[1746374447410,0.0321,95473.0,95472.0,0.329475]
[1746374448123,0.0321,95473.0,95472.0,0.873675]
[1746374448323,0.0371,95473.0,95472.0,0.873675]
[1746374448820,0.0411,95473.0,95472.0,0.873675]
[1746374451224,0.0411,95473.0,95472.0,0.755675]
[1746374452123,0.0411,95473.0,95472.0,0.873675]
[1746374453325,0.0411,95473.0,95472.0,0.755675]
[1746374457528,0.0411,95473.0,95472.0,0.5462]
[1746374458624,0.0411,95473.0,95472.0,0.755675]
[1746374459127,0.009,95473.0,95472.0,0.755675]
[1746374460131,0.009,95473.0,95472.0,0.873675]
[1746374460629,0.009,95473.0,95472.0,0.88414365]
[1746374460831,0.009,95473.0,95472.0,0.52334365]
[1746374461030,0.009,95473.0,95472.0,0.88414365]
[1746374463434,0.009,95473.0,95472.0,0.873675]
[1746374463730,0.009,95473.0,95472.0,1.313675]
[1746374464233,0.009,95473.0,95472.0,1.195675]
[1746374464532,0.009,95473.0,95472.0,1.235675]
[1746374465619,0.009,95473.0,95472.0,1.25117008]
[1746374465823,0.0329,95489.0,95477.0,0.052366]
[1746374466030,0.0329,95489.0,95488.0,0.2094399]
[1746374466332,0.1056504,95504.0,95495.0,0.2094245]
[1746374466636,0.1056504,95504.0,95495.0,0.3294245]
[1746374467133,0.12969114,95496.0,95495.0,0.3294245]
[1746374467434,0.119,95496.0,95495.0,0.3294245]
[1746374467632,0.124,95496.0,95495.0,0.3294245]
[1746374468330,0.13,95496.0,95495.0,0.3294245]
[1746374469026,0.1935,95496.0,95495.0,0.3294245]
[1746374470339,0.0444,95496.0,95495.0,0.6630245]
[1746374470636,0.012,95496.0,95495.0,0.6630245]
[1746374471739,0.001,95496.0,95495.0,0.6950245]
[1746374471930,0.001,95496.0,95495.0,0.6960245]
[1746374472533,0.0015,95500.0,95499.0,0.2094158]
[1746374472735,0.0015,95500.0,95499.0,0.6394158]
[1746374473337,0.0015,95500.0,95499.0,0.6494158]
[1746374473535,0.0015,95500.0,95499.0,0.7135158]
[1746374473736,0.0015,95500.0,95499.0,0.7451158]
[1746374474841,0.0015,95500.0,95499.0,1.1059158]
[1746374475034,0.0015,95500.0,95499.0,1.1069158]
[1746374475235,0.0015,95500.0,95499.0,1.1079158]
[1746374478333,0.0015,95500.0,95499.0,1.1109158]
[1746374478533,0.0015,95500.0,95499.0,1.1139158]
[1746374485446,0.0015,95500.0,95499.0,0.8439158]
[1746374486040,0.0015,95500.0,95499.0,1.1339158]
[1746374489454,0.0015,95500.0,95499.0,1.1239158]
[1746374490649,0.0015,95500.0,95499.0,1.1339158]
[1746374493843,0.3608,95515.0,95507.0,0.0523491]
[1746374494043,0.4788,95515.0,95514.0,0.2093829]
[1746374494247,0.4788,95515.0,95514.0,0.3293829]
[1746374495256,0.5726,95515.0,95514.0,0.3293829]
[1746374496147,0.5726,95515.0,95514.0,0.3918829]
[1746374496457,0.5726,95515.0,95514.0,0.3928829]
[1746374497145,0.5398,95515.0,95514.0,0.40056632]
[1746374497447,0.5398,95515.0,95514.0,0.40156632]
[1746374497648,0.5398,95515.0,95514.0,0.40356632]
[1746374498657,0.5708,95515.0,95514.0,0.40356632]
[1746374500059,0.5708,95515.0,95514.0,0.37396632]
[1746374500559,0.5708,95515.0,95514.0,0.37496632]
[1746374500748,0.5708,95515.0,95514.0,0.37196632]
[1746374501056,0.5708,95515.0,95514.0,0.37496632]
[1746374502156,0.21,95515.0,95514.0,0.37496632]
[1746374507363,0.149,95515.0,95514.0,0.37496632]
[1746374509459,0.118,95515.0,95514.0,0.37496632]
[1746374510167,0.0319,95515.0,95514.0,0.37496632]
[1746374511167,0.3608,95519.0,95515.0,0.0523451]
[1746374511366,0.3608,95519.0,95518.0,0.2093741]
[1746374511566,0.3608,95519.0,95518.0,0.3293741]
[1746374512271,0.3608,95519.0,95518.0,0.3919741]
[1746374512869,0.0302,95523.0,95522.0,0.2093653]
[1746374513073,0.0302,95523.0,95522.0,0.3593653]
[1746374513671,0.0302,95523.0,95522.0,0.4213653]
[1746374514965,0.0302,95523.0,95522.0,0.4223653]
[1746374515163,0.0302,95523.0,95522.0,0.4243653]
[1746374523072,0.01023986,95525.0,95524.0,0.2093609]
[1746374523274,0.0326,95525.0,95524.0,0.2093609]
[1746374523779,0.0326,95525.0,95524.0,0.3093609]
[1746374523977,0.3608,95528.0,95525.0,0.2093588]
[1746374524176,0.119,95526.0,95525.0,0.3734588]
[1746374525380,0.12957465,95526.0,95525.0,0.3754588]
[1746374527384,0.12957465,95526.0,95525.0,0.3734588]
[1746374527592,0.12957465,95526.0,95525.0,0.3754588]
[1746374528089,0.01157465,95526.0,95525.0,0.3754588]
[1746374528483,0.01157465,95526.0,95525.0,0.2754588]
[1746374539696,0.01157465,95526.0,95525.0,0.3754588]
[1746374541197,0.12957465,95526.0,95525.0,0.3754588]
[1746374542298,0.01157465,95526.0,95525.0,0.3754588]
[1746374542501,0.37237465,95526.0,95525.0,0.3754588]
[1746374547504,0.37237465,95526.0,95525.0,0.3734588]
[1746374547703,0.37237465,95526.0,95525.0,0.3754588]
[1746374548105,0.37237465,95526.0,95525.0,0.3734588]
[1746374548410,0.37237465,95526.0,95525.0,0.3744588]
[1746374554410,0.01157465,95526.0,95525.0,0.3744588]
[1746374557512,0.001,95526.0,95525.0,0.3744588]
[1746374578327,0.001,95526.0,95525.0,0.3754588]
[1746374586735,0.001,95526.0,95525.0,0.3734588]
[1746374586929,0.001,95526.0,95525.0,0.3744588]
[1746374590439,0.001,95526.0,95525.0,0.3754588]
[1746374599044,0.0321,95526.0,95525.0,0.3754588]
[1746374600350,0.0321,95526.0,95525.0,0.3734588]
[1746374600549,0.0321,95526.0,95525.0,0.3744588]
[1746374600949,0.0321,95526.0,95525.0,0.3754588]
[1746374607151,0.001,95526.0,95525.0,0.3754588]
[1746374609452,0.001,95526.0,95525.0,0.3734588]
[1746374609653,0.001,95526.0,95525.0,0.3754588]
[1746374618778,0.001,95526.0,95525.0,0.3764588]
[1746374621577,0.0792378,95533.0,95532.0,0.2093434]
[1746374621780,0.0792378,95533.0,95532.0,0.6593434]
[1746374622167,0.0792378,95533.0,95532.0,0.7559434]
[1746374622573,0.1056504,95540.0,95532.0,0.7559434]
[1746374622574,0.0792378,95534.0,95533.0,0.2093412]
[1746374622774,0.0792378,95534.0,95533.0,0.7536412]
[1746374623276,0.0792378,95534.0,95533.0,0.8716412]
[1746374624375,0.0408925,95534.0,95533.0,0.8716412]
[1746374624683,0.0418925,95534.0,95533.0,0.97631719]
[1746374625077,0.0418925,95534.0,95533.0,0.97731719]
[1746374626184,0.0418925,95534.0,95533.0,0.8726412]
[1746374627288,0.001,95534.0,95533.0,0.8726412]
[1746374627480,0.35544875,95539.0,95538.0,0.2093303]
[1746374627784,0.35544875,95539.0,95538.0,0.6493303]
[1746374628486,0.35544875,95539.0,95538.0,0.7123303]
[1746374628685,0.35744875,95539.0,95538.0,0.7123303]
[1746374628985,0.35744875,95539.0,95538.0,0.7323303]
[1746374631185,0.3608,95547.0,95546.0,0.2093127]
[1746374631377,0.3608,95547.0,95546.0,0.6693127]
[1746374631577,0.3608,95547.0,95546.0,0.3593127]
[1746374632083,0.3608,95547.0,95546.0,0.4219127]
[1746374632285,0.0313,95552.0,95551.0,0.2093018]
[1746374632588,0.0313,95552.0,95551.0,0.3193018]
[1746374633089,0.1493,95552.0,95551.0,0.3193018]
[1746374633386,0.1493,95552.0,95551.0,0.33476478]
[1746374633980,0.1493,95552.0,95551.0,0.12546298]
[1746374634181,0.1493,95552.0,95551.0,0.33476478]
[1746374635082,0.0313,95552.0,95551.0,0.33476478]
[1746374635478,0.0313,95552.0,95551.0,0.3193018]
[1746374635686,0.04160257,95552.0,95551.0,0.3193018]
[1746374638587,0.001,95556.0,95555.0,0.209293]
[1746374638788,0.001,95556.0,95555.0,0.639293]
[1746374639084,0.001,95556.0,95555.0,0.319293]
[1746374646298,0.001,95556.0,95555.0,0.352593]
[1746374651895,0.001,95556.0,95555.0,0.383593]
[1746374652699,0.001,95556.0,95555.0,0.352593]
[1746374652904,0.1241,95556.0,95555.0,0.209293]
[1746374653104,0.2221,95556.0,95555.0,0.209293]
[1746374653305,0.4715908,95556.0,95555.0,0.209293]
[1746374658706,0.2623,95556.0,95555.0,0.209293]
[1746374665209,0.4715908,95556.0,95555.0,0.209293]
[1746374665415,0.2623,95556.0,95555.0,0.209293]
[1746374673306,0.4615908,95556.0,95555.0,0.209293]
[1746374673709,0.2523,95556.0,95555.0,0.209293]
[1746374674122,0.2123,95556.0,95555.0,0.209293]
[1746374675408,0.1796,95556.0,95555.0,0.209293]
[1746374677619,0.3888908,95556.0,95555.0,0.273493]
[1746374677916,0.3888908,95556.0,95555.0,0.28897404]
[1746374679918,0.3584908,95556.0,95555.0,0.28897404]
[1746374681319,0.3584908,95556.0,95555.0,0.273493]
[1746374685312,0.3584908,95556.0,95555.0,0.28898574]
[1746374689726,0.3584908,95556.0,95555.0,0.273493]
[1746374690817,0.3584908,95556.0,95555.0,0.28896299]
[1746374693821,0.35064018,95556.0,95555.0,0.28896299]
[1746374695429,0.35064018,95556.0,95555.0,0.273493]
[1746374700234,0.2394908,95556.0,95555.0,0.273493]
[1746374701138,0.2594908,95556.0,95555.0,0.273493]
[1746374701334,0.2394908,95556.0,95555.0,0.273493]
[1746374701635,0.2594908,95556.0,95555.0,0.273493]
[1746374701953,0.2093325,95537.0,95536.0,0.2093257]
[1746374702122,0.2593325,95537.0,95536.0,0.12302326]
[1746374702328,0.06,95537.0,95526.0,0.26536092]
[1746374702632,0.2093544,95527.0,95526.0,0.52705432]
[1746374703024,0.2416544,95527.0,95526.0,0.54252604]
[1746374703230,0.3596544,95527.0,95526.0,0.60442604]
[1746374703930,0.35180202,95527.0,95526.0,0.60642604]
[1746374704433,0.37180202,95527.0,95526.0,0.60642604]
[1746374704939,0.38248133,95527.0,95526.0,0.60642604]
[1746374705141,0.38248133,95527.0,95526.0,0.63692604]
[1746374705341,0.38248133,95527.0,95526.0,0.63892604]
[1746374705637,0.36248133,95527.0,95526.0,0.63792604]
[1746374705835,0.36248133,95527.0,95526.0,0.63692604]
[1746374706034,0.36248133,95527.0,95526.0,0.65238166]
[1746374706338,0.36248133,95527.0,95526.0,0.65138166]
[1746374706539,0.36248133,95527.0,95526.0,0.65238166]
[1746374707045,0.36248133,95527.0,95526.0,0.63692604]
[1746374707746,0.36248133,95527.0,95526.0,0.37156512]
[1746374708041,0.36248133,95527.0,95526.0,0.38699833]
[1746374712350,0.38248133,95527.0,95526.0,0.38699833]
[1746374712950,0.36248133,95527.0,95526.0,0.38699833]
[1746374715448,0.36248133,95527.0,95526.0,0.38699347]
[1746374716952,0.33018133,95527.0,95526.0,0.38699347]
[1746374717149,0.33018133,95527.0,95526.0,0.37156512]
[1746374717349,0.36248133,95527.0,95526.0,0.37156512]
[1746374718155,0.24448133,95527.0,95526.0,0.37156512]
[1746374718354,0.01067931,95527.0,95526.0,0.37156512]
[1746374718546,0.2093429,95533.0,95532.0,0.2093412]
[1746374718746,0.2093429,95533.0,95532.0,0.28791292]
[1746374719856,0.2093429,95533.0,95532.0,0.28891292]
[1746374721260,0.21986127,95533.0,95532.0,0.28891292]
[1746374721860,0.21986127,95533.0,95532.0,0.28791292]
[1746374722053,0.21986127,95533.0,95532.0,0.28891292]
[1746374723957,0.58066127,95533.0,95532.0,0.28891292]
[1746374724251,0.69066127,95533.0,95532.0,0.01647172]
[1746374724458,1.01066127,95533.0,95532.0,1e-08]
[1746374724761,0.76286127,95533.0,95532.0,1e-08]
[1746374725152,0.88086127,95533.0,95532.0,1e-08]
[1746374725661,0.2093456,95531.0,95530.0,0.2093467]
[1746374725862,0.2893456,95531.0,95530.0,0.2093467]
[1746374726255,0.4073456,95531.0,95530.0,0.2093467]
[1746374727064,0.2093522,95528.0,95527.0,0.2716478]
[1746374727263,0.2193522,95528.0,95527.0,0.2716478]
[1746374728064,0.3373522,95528.0,95527.0,0.2716478]
[1746374729558,0.3273522,95528.0,95527.0,0.2716478]
[1746374734365,0.118,95528.0,95527.0,0.2716478]
[1746374735157,0.2093467,95531.0,95530.0,0.2616799]
[1746374735771,0.2093467,95531.0,95530.0,0.3273799]
[1746374736165,0.3473467,95531.0,95530.0,0.3273799]
[1746374737090,0.2093467,95531.0,95530.0,0.3273799]
[1746374737492,0.3593467,95531.0,95530.0,0.3273799]
[1746374740294,0.15,95531.0,95530.0,0.3273799]
[1746374740696,0.3593456,95531.0,95530.0,0.3273799]
[1746374741494,0.3593456,95531.0,95530.0,0.34281036]
[1746374742390,0.3593456,95531.0,95530.0,0.3273799]
[1746374742587,0.3593456,95531.0,95530.0,0.34280387]
[1746374742785,0.15,95531.0,95530.0,0.34280387]
[1746374743794,0.3593456,95531.0,95530.0,0.34280387]
[1746374746393,0.3593456,95531.0,95530.0,0.3273799]
[1746374748895,0.3593456,95531.0,95530.0,0.3283799]
[1746374751693,0.3593456,95531.0,95530.0,0.3273799]
[1746374758792,0.3593456,95531.0,95530.0,0.3283799]
[1746374761105,0.3593456,95531.0,95530.0,0.3273799]
[1746374763702,0.15,95531.0,95530.0,0.3273799]
[1746374763902,0.01051837,95533.0,95532.0,0.2093434]
[1746374764106,0.031,95540.0,95539.0,0.2093281]
[1746374764405,0.1056504,95549.0,95541.0,0.2093237]
[1746374764592,0.031,95545.0,95541.0,0.2093237]
[1746374765102,0.031,95545.0,95541.0,0.2415237]
[1746374765405,0.09053634,95542.0,95541.0,0.2415237]
[1746374765903,0.09153634,95542.0,95541.0,0.2415237]
[1746374766504,0.09153634,95542.0,95541.0,0.3615237]
[1746374766803,0.08087652,95542.0,95541.0,0.3615237]
[1746374767105,0.08087652,95542.0,95541.0,0.4795237]
[1746374769308,0.001,95542.0,95541.0,0.4795237]
[1746374770609,0.001,95542.0,95541.0,0.8403237]
[1746374771811,0.001,95542.0,95541.0,0.4795237]
[1746374772002,0.001,95542.0,95541.0,0.8403237]
[1746374772203,0.001,95542.0,95541.0,0.7223237]
[1746374774113,0.001,95542.0,95541.0,0.8403237]
[1746374775113,0.001,95542.0,95541.0,0.7223237]
[1746374780919,0.001,95542.0,95541.0,0.3615237]
[1746374781121,0.001,95542.0,95541.0,0.7223237]
[1746374782518,0.001,95542.0,95541.0,0.7532237]
[1746374787829,0.001,95542.0,95541.0,0.3924237]
[1746374788028,0.001,95542.0,95541.0,0.7532237]
[1746374793021,0.5700851,95559.0,95556.0,0.2092908]
[1746374793332,0.0626,95558.0,95556.0,0.2092908]
[1746374793533,0.14299652,95557.0,95556.0,0.2092908]
[1746374793736,0.2352957,95557.0,95556.0,0.2092908]
[1746374794043,0.2352957,95557.0,95556.0,0.2416908]
[1746374794225,0.3532957,95557.0,95556.0,0.2416908]
[1746374794429,0.3542957,95557.0,95556.0,0.2416908]
[1746374794629,0.5635843,95557.0,95556.0,0.2416908]
[1746374794833,0.5135843,95557.0,95556.0,0.2416908]
[1746374796336,0.5453843,95557.0,95556.0,0.2416908]
[1746374797639,0.46550778,95557.0,95556.0,0.0324]
[1746374798640,0.46550778,95557.0,95556.0,0.2416908]
[1746374805347,0.54547981,95557.0,95556.0,0.2416908]
[1746374812354,0.46550778,95557.0,95556.0,0.2416908]
[1746374813651,0.40238778,95557.0,95556.0,0.2416908]
[1746374815354,0.48235981,95557.0,95556.0,0.2416908]
[1746374819943,0.45055981,95557.0,95556.0,0.2416908]
[1746374823060,0.41875981,95557.0,95556.0,0.2416908]
[1746374825059,0.33878778,95557.0,95556.0,0.2416908]
[1746374831165,0.22078778,95557.0,95556.0,0.2416908]
[1746374840965,0.01149918,95557.0,95556.0,0.2416908]
[1746374841173,0.22078778,95557.0,95556.0,0.2416908]
[1746374842363,0.25378778,95557.0,95556.0,0.2416908]
[1746374845276,0.22078778,95557.0,95556.0,0.2416908]
[1746374849276,0.30075981,95557.0,95556.0,0.2416908]
[1746374861983,0.36075981,95557.0,95556.0,0.2416908]
[1746374862984,0.30075981,95557.0,95556.0,0.2416908]
[1746374863685,0.22078778,95557.0,95556.0,0.2416908]
[1746374864083,0.25268778,95557.0,95556.0,0.2416908]
[1746374873892,0.30501028,95557.0,95554.0,0.0828238]
[1746374874083,0.30501028,95557.0,95556.0,0.2092908]
[1746374875801,0.30401028,95557.0,95556.0,0.2092908]
[1746374877685,0.30401028,95557.0,95556.0,0.2404908]
[1746374878699,0.31401028,95557.0,95556.0,0.2404908]
[1746374880695,0.30401028,95557.0,95556.0,0.2404908]
[1746374881992,0.25168778,95557.0,95556.0,0.2404908]
[1746374884696,0.33165981,95557.0,95556.0,0.2404908]
[1746374914315,0.36165981,95557.0,95556.0,0.2404908]
[1746374915417,0.33165981,95557.0,95556.0,0.2404908]
[1746374917220,0.33165981,95557.0,95556.0,0.2708908]
[1746374925922,0.25168778,95557.0,95556.0,0.2708908]
[1746374930130,0.33165981,95557.0,95556.0,0.2708908]
[1746374940035,0.0523291,95546.0,95543.0,0.0523295]
[1746374940235,0.0304,95545.0,95544.0,0.0636]
[1746374940431,0.3097149,95545.0,95544.0,0.0322]
[1746374940637,0.2093193,95543.0,95531.0,0.3608]
[1746374940836,0.6393193,95543.0,95532.0,0.0322]
[1746374941037,0.6393193,95543.0,95534.0,0.2135062]
[1746374941341,0.7573193,95543.0,95536.0,0.2093325]
[1746374941541,0.7573193,95543.0,95534.0,0.2135062]
[1746374942242,0.7573193,95543.0,95535.0,0.052334]
[1746374943143,0.7573193,95543.0,95536.0,0.0523334]
[1746374943346,0.7573193,95543.0,95539.0,0.2093264]
[1746374943946,0.5373193,95543.0,95539.0,0.2093264]
[1746374944737,0.2093259,95540.0,95539.0,0.2093264]
[1746374944937,0.2893259,95540.0,95539.0,0.2093264]